fUSD/lending_fUSD_20250417
["ID","MTS","AMOUNT","RATE_DAILY","PERIOD"]
[358270386,1744885849258,-500.0,0.00323287,120]
[358270387,1744885849268,-500.0,0.00323287,120]
[358270388,1744885849278,-500.0,0.00323287,120]
[358270389,1744885849289,-500.0,0.00323287,120]
[358270390,1744885849299,-500.0,0.00323287,120]
[358270391,1744885849308,-500.0,0.00323287,120]
[358270392,1744885849319,-500.0,0.00323287,120]
[358270393,1744885849329,-500.0,0.00323287,120]
[358270394,1744885849339,-500.0,0.00323287,120]
[358270395,1744885849348,-2087.29587474,0.00323287,120]
[358270396,1744885849358,-500.0,0.00323287,30]
[358270397,1744885849367,-500.0,0.00323287,120]
[358270398,1744885849378,-500.0,0.00323287,120]
[358270399,1744885849388,-500.0,0.00323287,120]
[358270400,1744885849398,-500.0,0.00323287,120]
[358270401,1744885849407,-500.0,0.00323287,120]
[358270402,1744885849417,-532.44210214,0.00323287,120]
[358270403,1744885849426,-500.0,0.00323287,120]
[358270404,1744885849436,-531.90440094,0.00323287,120]
[358270405,1744885849446,-500.0,0.00323287,120]
[358270406,1744885849456,-500.0,0.00323287,120]
[358270407,1744885849466,-150.0,0.0033,120]
[358270408,1744885849475,-4082.25723396,0.00338832,15]
[358270409,1744885849485,-500.0,0.00347945,120]
[358270410,1744885849495,-515.95,0.00347945,120]
[358270411,1744885849505,-495.00200001,0.00347945,120]
[358270412,1744885849515,-500.0,0.00347945,120]
[358270413,1744885849525,-500.0,0.00347945,120]
[358270414,1744885849535,-500.0,0.00347945,120]
[358270415,1744885849547,-500.0,0.00347945,120]
[358270416,1744885849557,-500.0,0.00347945,120]
[358270417,1744885849567,-500.0,0.00347945,120]
[358270418,1744885849578,-500.0,0.00347945,120]
[358270419,1744885849588,-1295.94,0.00347945,7]
[358270420,1744885849598,-1048.81,0.00347945,120]
[358270421,1744885849608,-500.0,0.00347945,120]
[358270422,1744885849619,-515.52,0.00347945,120]
[358270423,1744885849630,-500.0,0.00347945,120]
[358270424,1744885849639,-500.0,0.00347945,120]
[358270425,1744885849649,-500.0,0.00347945,120]
[358270426,1744885849659,-500.0,0.00347945,120]
[358270427,1744885849669,-500.0,0.00347945,120]
[358270428,1744885849679,-500.0,0.00347945,120]
[358270429,1744885849688,-500.0,0.00347945,120]
[358270430,1744885849698,-500.0,0.00347945,120]
[358270431,1744885849707,-500.0,0.00347945,120]
[358270432,1744885849718,-361.04211322,0.00347945,120]
[358270433,1744885849728,-500.0,0.00347945,120]
[358270434,1744885849738,-500.0,0.00347945,120]
[358270435,1744885849750,-500.0,0.00347945,30]
[358270436,1744885849759,-500.0,0.00347945,120]
[358270437,1744885849769,-500.0,0.00347945,120]
[358270438,1744885849779,-500.0,0.00347945,120]
[358270439,1744885849790,-500.0,0.00347945,120]
[358270440,1744885849799,-500.0,0.00347945,120]
[358270441,1744885849809,-500.0,0.00347945,120]
[358270442,1744885849819,-500.0,0.00347945,120]
[358270443,1744885849829,-500.0,0.00372602,120]
[358270444,1744885849839,-500.0,0.00372602,120]
[358270445,1744885849849,-238.72,0.00372602,120]
[358270446,1744885849859,-546.48577822,0.00372602,120]
[358270447,1744885849870,-500.0,0.00372602,120]
[358270448,1744885849880,-500.0,0.00372602,120]
[358270449,1744885849891,-500.0,0.00372602,120]
[358270450,1744885849900,-1295.94,0.00372602,7]
[358270451,1744885849910,-1048.81,0.00372602,120]
[358270452,1744885849921,-500.0,0.00372602,120]
[358270453,1744885849930,-515.52,0.00372602,120]
[358270454,1744885849940,-500.0,0.00372602,120]
[358270455,1744885849949,-500.0,0.00372602,120]
[358270456,1744885849959,-500.0,0.00372602,120]
[358270457,1744885849968,-500.0,0.00372602,120]
[358270458,1744885849978,-500.0,0.00372602,120]
[358270459,1744885849988,-500.0,0.00372602,120]
[358270460,1744885849998,-221.8,0.00372602,120]
[358270461,1744885850007,-500.0,0.00372602,120]
[358270462,1744885850017,-500.0,0.00372602,120]
[358270463,1744885850027,-500.0,0.00372602,120]
[358270464,1744885850037,-500.0,0.00372602,30]
[358270465,1744885850048,-500.0,0.00372602,120]
[358270466,1744885850058,-500.0,0.00372602,120]
[358270467,1744885850068,-500.0,0.00372602,120]
[358270468,1744885850077,-500.0,0.00372602,120]
[358270469,1744885850087,-515.32,0.00372602,120]
[358270470,1744885850097,-274.77,0.00372602,120]
[358270471,1744885850106,-1179.76167489,0.00374406,120]
[358270472,1744885850116,-47559.7074808,0.00390544,120]
[358270473,1744885850126,-3060.43252,0.003965,50]
[358270474,1744885850136,-304.89147641,0.0039726,120]
[358270475,1744885850145,-500.0,0.0039726,120]
[358270476,1744885850155,-500.0,0.0039726,120]
[358270477,1744885850164,-500.0,0.0039726,120]
[358270478,1744885850175,-500.0,0.0039726,120]
[358270479,1744885850185,-1295.94,0.0039726,7]
[358270480,1744885850195,-1048.81,0.0039726,120]
[358270481,1744885850205,-500.0,0.0039726,120]
[358270482,1744885850215,-515.52,0.0039726,120]
[358270483,1744885850226,-500.0,0.0039726,120]
[358270484,1744885850236,-500.0,0.0039726,120]
[358270485,1744885850249,-500.0,0.0039726,120]
[358270486,1744885850259,-239.87,0.0039726,120]
[358270487,1744885850269,-500.0,0.0039726,120]
[358270488,1744885850279,-500.0,0.0039726,120]
[358270489,1744885850291,-500.0,0.0039726,120]
[358270490,1744885850301,-500.0,0.0039726,120]
[358270491,1744885850312,-500.0,0.0039726,120]
[358270492,1744885850323,-500.0,0.0039726,30]
[358270493,1744885850333,-500.0,0.0039726,120]
[358270494,1744885850343,-500.0,0.0039726,120]
[358270495,1744885850352,-500.0,0.0039726,120]
[358270496,1744885850363,-301.65,0.0039726,120]
[358270497,1744885850372,-575.21109322,0.00399942,120]
[358270498,1744885850382,-5000.0,0.004,120]
[358270499,1744885850393,-1000.0,0.004,120]
[358270500,1744885850403,-500.0,0.00421917,120]
[358270501,1744885850413,-524.25,0.00421917,120]
[358270502,1744885850423,-500.0,0.00421917,120]
[358270503,1744885850433,-492.503,0.00421917,120]
[358270504,1744885850443,-1295.94,0.00421917,7]
[358270505,1744885850454,-1048.81,0.00421917,120]
[358270506,1744885850464,-500.0,0.00421917,120]
[358270507,1744885850474,-515.52,0.00421917,120]
[358270508,1744885850496,-500.0,0.00421917,120]
[358270509,1744885850506,-500.0,0.00421917,120]
[358270510,1744885850516,-500.0,0.00421917,120]
[358270511,1744885850527,-500.0,0.00421917,120]
[358270512,1744885850538,-500.0,0.00421917,120]
[358270513,1744885850549,-500.0,0.00421917,120]
[358270514,1744885850559,-500.0,0.00421917,120]
[358270515,1744885850569,-500.0,0.00421917,30]
[358270516,1744885850579,-500.0,0.00421917,120]
[358270517,1744885850590,-500.0,0.00421917,120]
[358270518,1744885850600,-500.0,0.00421917,120]
[358270519,1744885850611,-500.0,0.00446575,120]
[358270520,1744885850621,-500.0,0.00446575,120]
[358270521,1744885850631,-1295.94,0.00446575,7]
[358270522,1744885850641,-1048.81,0.00446575,120]
[358270523,1744885850651,-500.0,0.00446575,120]
[358270524,1744885850662,-515.52,0.00446575,120]
[358270525,1744885850672,-500.0,0.00446575,120]
[358270526,1744885850683,-500.0,0.00446575,120]
[358270527,1744885850693,-500.0,0.00446575,120]
[358270528,1744885850704,-500.0,0.00446575,120]
[358270529,1744885850714,-500.0,0.00446575,120]
[358270530,1744885850726,-500.0,0.00446575,120]
[358270531,1744885850738,-500.0,0.00446575,120]
[358270532,1744885850752,-500.0,0.00446575,30]
[358270533,1744885850763,-500.0,0.00446575,120]
[358270534,1744885850774,-500.0,0.00446575,120]
[358270535,1744885850784,-500.0,0.00446575,120]
[358270536,1744885850797,-500.0,0.00471232,120]
[358270537,1744885850919,-500.0,0.00471232,120]
[358270538,1744885850929,-1295.94,0.00471232,7]
[358270539,1744885850939,-1048.81,0.00471232,120]
[358270540,1744885850949,-500.0,0.00471232,120]
[358270541,1744885850958,-515.52,0.00471232,120]
[358270542,1744885850968,-500.0,0.00471232,120]
[358270543,1744885850978,-500.0,0.00471232,120]
[358270544,1744885850988,-500.0,0.00471232,120]
[358270545,1744885850997,-500.0,0.00471232,120]
[358270546,1744885851007,-610.57159465,0.00471232,120]
[358270547,1744885851016,-500.0,0.00471232,120]
[358270548,1744885851026,-500.0,0.00471232,120]
[358270549,1744885851035,-500.0,0.00471232,30]
[358270550,1744885851046,-500.0,0.00471232,120]
[358270551,1744885851056,-500.0,0.00471232,120]
[358270552,1744885851066,-500.0,0.00471232,120]
[358270553,1744885851076,-800.0,0.0049,120]
[358270554,1744885851086,-575.21109322,0.004906,120]
[358270555,1744885851096,-500.0,0.0049589,120]
[358270556,1744885851107,-500.0,0.0049589,120]
[358270557,1744885851118,-1295.94,0.0049589,7]
[358270558,1744885851128,-1048.81,0.0049589,120]
[358270559,1744885851138,-500.0,0.0049589,120]
[358270560,1744885851147,-515.52,0.0049589,120]
[358270561,1744885851157,-500.0,0.0049589,120]
[358270562,1744885851167,-500.0,0.0049589,120]
[358270563,1744885851176,-500.0,0.0049589,120]
[358270564,1744885851186,-260.12398387,0.0049589,120]
[358270565,1744885851195,-500.0,0.0049589,120]
[358270566,1744885851205,-500.0,0.0049589,120]
[358270567,1744885851215,-590.24,0.0049589,30]
[358270568,1744885851224,-500.0,0.0049589,120]
[358270569,1744885851233,-500.0,0.0049589,120]
[358270570,1744885851243,-500.0,0.0049589,120]
[358270571,1744885851255,-47559.7074808,0.00499895,120]
[358270572,1744885851265,-5000.0,0.005,120]
[358270573,1744885851274,-1000.0,0.005,120]
[358270574,1744885851283,-3318.12122252,0.005,120]
[358270575,1744885851294,-1995.0,0.005,120]
[358270576,1744885851303,-500.0,0.00520547,120]
[358270577,1744885851312,-500.0,0.00520547,120]
[358270578,1744885851322,-1295.94,0.00520547,7]
[358270579,1744885851333,-1048.81,0.00520547,120]
[358270580,1744885851343,-500.0,0.00520547,120]
[358270581,1744885851352,-515.52,0.00520547,120]
[358270582,1744885851361,-500.0,0.00520547,120]
[358270583,1744885851371,-500.0,0.00520547,120]
[358270584,1744885851380,-500.0,0.00520547,120]
[358270585,1744885851389,-500.0,0.00520547,120]
[358270586,1744885851399,-500.0,0.00520547,120]
[358270587,1744885851408,-500.0,0.00520547,120]
[358270588,1744885851417,-644.24682883,0.00520547,120]
[358270589,1744885851426,-500.0,0.00520547,120]
[358270590,1744885851436,-500.0,0.00545205,120]
[358270591,1744885851445,-500.0,0.00545205,120]
[358270592,1744885851454,-1295.94,0.00545205,7]
[358270593,1744885851467,-1048.81,0.00545205,120]
[358270594,1744885851476,-500.0,0.00545205,120]
[358270595,1744885851486,-515.52,0.00545205,120]
[358270596,1744885851496,-500.0,0.00545205,120]
[358270597,1744885851505,-500.0,0.00545205,120]
[358270598,1744885851515,-500.0,0.00545205,120]
[358270599,1744885851524,-500.0,0.00545205,120]
[358270600,1744885851533,-500.0,0.00545205,120]
[358270601,1744885851543,-500.0,0.00545205,120]
[358270602,1744885851556,-500.0,0.00545205,120]
[358270603,1744885851566,-1005.738,0.00568,120]
[358270604,1744885851575,-500.0,0.00569863,120]
[358270605,1744885851585,-500.0,0.00569863,120]
[358270606,1744885851594,-1295.94,0.00569863,7]
[358270607,1744885851604,-1048.81,0.00569863,120]
[358270608,1744885851614,-500.0,0.00569863,120]
[358270609,1744885851624,-515.52,0.00569863,120]
[358270610,1744885851633,-500.0,0.00569863,120]
[358270611,1744885851643,-500.0,0.00569863,120]
[358270612,1744885851652,-500.0,0.00569863,120]
[358270613,1744885851662,-500.0,0.00569863,120]
[358270614,1744885851671,-500.0,0.00569863,120]
[358270615,1744885851681,-500.0,0.00569863,120]
[358270616,1744885851691,-500.0,0.00569863,120]
[358270617,1744885851701,-800.0,0.0059,120]
[358270618,1744885851710,-500.0,0.0059452,120]
[358270619,1744885851720,-504.64,0.0059452,120]
[358270620,1744885851730,-1295.94,0.0059452,7]
[358270621,1744885851740,-1048.81,0.0059452,120]
[358270622,1744885851750,-515.52,0.0059452,120]
[358270623,1744885851760,-500.0,0.0059452,120]
[358270624,1744885851770,-500.0,0.0059452,120]
[358270625,1744885851779,-500.0,0.0059452,120]
[358270626,1744885851789,-574.76,0.0059452,120]
[358270627,1744885851800,-500.0,0.0059452,120]
[358270628,1744885851810,-500.0,0.0059452,120]
[358270629,1744885851819,-500.0,0.0059452,120]
[358270630,1744885851829,-575.21109322,0.00596173,120]
[358270631,1744885851839,-47559.7074808,0.00596805,120]
[358270632,1744885851848,-5000.0,0.006,120]
[358270633,1744885851858,-535.58,0.006,120]
[358270634,1744885851868,-1000.0,0.006,120]
[358270635,1744885851878,-500.0,0.00619178,120]
[358270636,1744885851887,-1295.94,0.00619178,7]
[358270637,1744885851897,-1048.81,0.00619178,120]
[358270638,1744885851907,-515.52,0.00619178,120]
[358270639,1744885851917,-500.0,0.00619178,120]
[358270640,1744885851927,-500.0,0.00619178,120]
[358270641,1744885851936,-500.0,0.00619178,120]
[358270642,1744885851946,-500.0,0.00619178,120]
[358270643,1744885851956,-455.17737404,0.00643835,120]
[358270644,1744885851965,-1295.94,0.00643835,7]
[358270645,1744885851975,-1048.81,0.00643835,120]
[358270646,1744885851986,-515.52,0.00643835,120]
[358270647,1744885851996,-500.0,0.00643835,120]
[358270648,1744885852005,-500.0,0.00643835,120]
[358270649,1744885852015,-500.0,0.00643835,120]
[358270650,1744885852026,-568.84,0.00643835,120]
[358270651,1744885852035,-800.0,0.0065,120]
[358270652,1744885852046,-151.9294947,0.00651,120]
[358270653,1744885852056,-4082.25723396,0.00658966,15]
[358270654,1744885852066,-1295.94,0.00668493,7]
[358270655,1744885852076,-1048.81,0.00668493,120]
[358270656,1744885852085,-515.52,0.00668493,120]
[358270657,1744885852095,-152.52,0.00668493,120]
[358270658,1744885852105,-500.0,0.00668493,120]
[358270659,1744885852114,-376.9,0.00668493,120]
[358270660,1744885852124,-735.0,0.0068,120]
[358270661,1744885852133,-863.54367897,0.0068,120]
[358270662,1744885852144,-500.0,0.00684931,120]
[358270663,1744885852153,-500.0,0.00684931,120]
[358270664,1744885852163,-511.23025732,0.00684931,120]
[358270665,1744885852172,-800.0,0.0069,120]
[358270666,1744885852182,-800.0,0.0069,120]
[358270667,1744885852192,-2023.0835544,0.0069,120]
[358270668,1744885852201,-287.60554661,0.00691921,120]
[358270669,1744885852211,-1295.94,0.0069315,7]
[358270670,1744885852221,-1048.81,0.0069315,120]
[358270671,1744885852230,-515.52,0.0069315,120]
[358270672,1744885852241,-500.0,0.0069315,120]
[358270673,1744885852254,-23779.8537404,0.00697681,120]
[358270674,1744885852265,-5000.0,0.007,120]
[358270675,1744885852275,-1037.0,0.007,120]
[358270676,1744885852286,-8000.0,0.007,120]
[358270677,1744885852297,-1295.94,0.00717808,7]
[358270678,1744885852307,-1048.81,0.00717808,120]
[358270679,1744885852318,-515.52,0.00717808,120]
[358270680,1744885852330,-500.0,0.00717808,120]
[358270681,1744885852340,-317.0,0.0073,120]
[358270682,1744885852349,-1179.76167489,0.00730213,120]
[358270683,1744885852359,-153.0,0.00735374,120]
[358270684,1744885852369,-153.0,0.00735374,120]
[358270685,1744885852379,-153.0,0.00735374,120]
[358270686,1744885852389,-153.0,0.00735374,120]
[358270687,1744885852399,-153.0,0.00735439,120]
[358270688,1744885852408,-153.0,0.00735439,120]
[358270689,1744885852418,-153.0,0.00735439,120]
[358270690,1744885852428,-153.0,0.00735439,120]
[358270691,1744885852438,-153.0,0.00735439,120]
[358270692,1744885852447,-153.0,0.00735439,120]
[358270693,1744885852457,-153.0,0.00735439,120]
[358270694,1744885852466,-153.0,0.00735439,120]
[358270695,1744885852476,-153.0,0.00735439,120]
[358270696,1744885852485,-153.0,0.00735439,120]
[358270697,1744885852495,-153.0,0.00735439,120]
[358270698,1744885852504,-153.0,0.00735439,120]
[358270699,1744885852513,-153.0,0.00735439,120]
[358270700,1744885852523,-153.0,0.00735836,120]
[358270701,1744885852533,-153.0,0.00735836,120]
[358270702,1744885852543,-153.0,0.00735836,120]
[358270703,1744885852553,-153.0,0.00735836,120]
[358270704,1744885852562,-153.0,0.00735907,120]
[358270705,1744885852572,-153.0,0.00735907,120]
[358270706,1744885852581,-153.0,0.00735907,120]
[358270707,1744885852590,-153.0,0.00735907,120]
[358270708,1744885852600,-153.0,0.00735907,120]
[358270709,1744885852609,-153.0,0.00735907,120]
[358270710,1744885852618,-153.0,0.00735907,120]
[358270711,1744885852627,-153.0,0.00735907,120]
[358270712,1744885852637,-153.0,0.00735907,120]
[358270713,1744885852647,-153.0,0.00735907,120]
[358270714,1744885852657,-153.0,0.00735907,120]
[358270715,1744885852666,-153.0,0.00735907,120]
[358270716,1744885852676,-153.0,0.00735907,120]
[358270717,1744885852685,-153.0,0.00736288,120]
[358270718,1744885852695,-153.0,0.00736288,120]
[358270719,1744885852704,-153.0,0.00736288,120]
[358270720,1744885852713,-153.0,0.00736288,120]
[358270721,1744885852723,-153.0,0.00736365,120]
[358270722,1744885852734,-153.0,0.00736365,120]
[358270723,1744885852744,-153.0,0.00736365,120]
[358270724,1744885852754,-153.0,0.00736365,120]
[358270725,1744885852764,-153.0,0.00736365,120]
[358270726,1744885852773,-153.0,0.00736365,120]
[358270727,1744885852783,-153.0,0.00736365,120]
[358270728,1744885852792,-153.0,0.00736365,120]
[358270729,1744885852801,-153.0,0.00736365,120]
[358270730,1744885852811,-153.0,0.00736365,120]
[358270731,1744885852820,-153.0,0.00736365,120]
[358270732,1744885852830,-153.0,0.00736365,120]
[358270733,1744885852840,-153.0,0.00736365,120]
[358270734,1744885852850,-153.0,0.00736754,120]
[358270735,1744885852859,-153.0,0.00736754,120]
[358270736,1744885852869,-153.0,0.00736754,120]
[358270737,1744885852878,-153.0,0.00736754,120]
[358270738,1744885852888,-153.0,0.00736822,120]
[358270739,1744885852897,-153.0,0.00736822,120]
[358270740,1744885852910,-153.0,0.00736822,120]
[358270741,1744885852920,-153.0,0.00736822,120]
[358270742,1744885852929,-153.0,0.00736822,120]
[358270743,1744885852938,-153.0,0.00736822,120]
[358270744,1744885852948,-153.0,0.00736822,120]
[358270745,1744885852957,-153.0,0.00736822,120]
[358270746,1744885852967,-153.0,0.00736822,120]
[358270747,1744885852976,-153.0,0.00736822,120]
[358270748,1744885852985,-153.0,0.00736822,120]
[358270749,1744885852995,-153.0,0.00736822,120]
[358270750,1744885853004,-153.0,0.00736822,120]
[358270751,1744885853013,-153.0,0.00737339,120]
[358270752,1744885853022,-153.0,0.00737339,120]
[358270753,1744885853032,-153.0,0.00737339,120]
[358270754,1744885853042,-153.0,0.00737339,120]
[358270755,1744885853051,-153.0,0.0073744,120]
[358270756,1744885853060,-153.0,0.0073744,120]
[358270757,1744885853069,-153.0,0.0073744,120]
[358270758,1744885853079,-153.0,0.0073744,120]
[358270759,1744885853088,-153.0,0.0073744,120]
[358270760,1744885853098,-153.0,0.0073744,120]
[358270761,1744885853107,-153.0,0.0073744,120]
[358270762,1744885853117,-153.0,0.0073744,120]
[358270763,1744885853127,-153.0,0.0073744,120]
[358270764,1744885853136,-153.0,0.0073744,120]
[358270765,1744885853146,-153.0,0.0073744,120]
[358270766,1744885853155,-153.0,0.0073744,120]
[358270767,1744885853165,-153.0,0.0073744,120]
[358270768,1744885853174,-153.0,0.0073744,120]
[358270769,1744885853183,-153.0,0.0073782,120]
[358270770,1744885853193,-153.0,0.00737906,120]
[358270771,1744885853202,-153.0,0.00737906,120]
[358270772,1744885853212,-153.0,0.00737906,120]
[358270773,1744885853222,-153.0,0.00737906,120]
[358270774,1744885853231,-153.0,0.00738366,120]
[358270775,1744885853242,-153.0,0.00738366,120]
[358270776,1744885853255,-50000.0,0.0074,120]
[358270777,1744885853265,-1000.0,0.0074,120]
[358270778,1744885853275,-1295.94,0.00742465,7]
[358270779,1744885853285,-1048.81,0.00742465,120]
[358270780,1744885853295,-515.52,0.00742465,120]
[358270781,1744885853304,-573.7,0.00742465,120]
[358270782,1744885853314,-180720.55532562,0.007443,120]
[358270783,1744885853324,-831.25,0.00744389,120]
[358270784,1744885853334,-831.25,0.00744399,120]
[358270785,1744885853343,-831.25,0.00744399,120]
[358270786,1744885853353,-500000.0,0.007444,30]
[358270787,1744885853362,-153.52,0.007462,87]
[358270788,1744885853380,-153.52,0.007462,87]
[358270789,1744885853390,-153.52,0.007462,87]
[358270790,1744885853400,-5688.0,0.00747,120]
[358270791,1744885853410,-1688.0,0.00747,120]
[358270792,1744885853420,-9975.01,0.007499,120]
[358270793,1744885853430,-9950.02,0.0075,120]
[358270794,1744885853440,-50000.0,0.0075,120]
[358270795,1744885853450,-1000.0,0.0075,120]
[358270796,1744885853578,-373.5132,0.00273972,120]
[358270797,1744885853707,-126.4868,0.00273972,120]
[358270798,1744885853718,-188.4067276,0.0075179,120]
[358270799,1744885854135,-150.58007017,0.000199,2]
[358270800,1744885854145,-500.0,0.00273972,120]
[358270801,1744885854155,-500.0,0.00273972,120]
[358270802,1744885854164,-500.0,0.00273972,120]
[358270803,1744885854174,-500.0,0.0029863,120]
[358270804,1744885854184,-500.0,0.00323287,120]
[358270805,1744885854194,-500.0,0.00347945,120]
[358270806,1744885854203,-20.5932724,0.0075179,120]
[358270807,1744885854213,-5688.0,0.00757,120]
[358270808,1744885854223,-300.0,0.0075997,120]
[358270809,1744885854233,-1010.6538,0.00759999,120]
[358270810,1744885854244,-800.0,0.0076,120]
[358270811,1744885854257,-1000.0,0.0076,120]
[358270812,1744885854267,-683.42003393,0.0076476,120]
[358270813,1744885854276,-550.06,0.00767,120]
[358270814,1744885854287,-1295.94,0.00767123,7]
[358270815,1744885854298,-1048.81,0.00767123,120]
[358270816,1744885854308,-515.52,0.00767123,120]
[358270817,1744885854318,-22511.90453971,0.00769018,120]
[358270818,1744885854332,-22511.90453971,0.00769432,120]
[358270819,1744885854343,-800.0,0.0077,120]
[358270820,1744885854353,-1000.0,0.0077,120]
[358270821,1744885854363,-5000.0,0.0078,120]
[358270822,1744885854374,-1000.0,0.0078,120]
[358270823,1744885854384,-2288.0,0.0078,120]
[358270824,1744885854394,-499.999999,0.0078,120]
[358270825,1744885854404,-800.0,0.0078,120]
[358270826,1744885854414,-250.0,0.0078117,120]
[358270827,1744885854424,-300.0,0.0078117,120]
[358270828,1744885854435,-150.0,0.007812,120]
[358270829,1744885854448,-150.0,0.007812,120]
[358270830,1744885854458,-150.0,0.007812,120]
[358270831,1744885854468,-831.25,0.00781229,120]
[358270832,1744885854480,-831.25,0.00781229,120]
[358270833,1744885854490,-73548.46659747,0.0078123,7]
[358270834,1744885854503,-433.94669398,0.0078123,7]
[358270835,1744885854521,-421.0,0.00372602,120]
[358270836,1744885854534,-79.0,0.00372602,120]
[358270837,1744885854557,-160.65,0.00059792,30]
[358270840,1744885881405,-161.06709779,0.00019973,2]
[358270841,1744885881466,-500.0,0.00019973,2]
[358270843,1744885981858,1669.04056692,0.0002,4]
[358270844,1744886049917,-250.0,0.0002197,2]
[358270849,1744886694095,223.26,0.00021917,2]
[358270850,1744886732159,-223.26,0.00023287,2]
[358270851,1744886732181,-223.26,0.00024657,2]
[358270852,1744886732334,-223.26,0.00026027,2]
[358270853,1744886732355,-85.84832693,0.00027397,2]
[358270856,1744886831087,-137.41167307,0.00027397,2]
[358270857,1744886831113,-223.26,0.00028767,2]
[358270858,1744886831139,-223.26,0.00030136,2]
[358270859,1744886831165,-223.26,0.00031506,2]
[358270860,1744886831196,-150.0,0.00031507,2]
[358270861,1744886831223,-250.0,0.00031546,2]
[358270862,1744886831249,-223.26,0.00032876,2]
[358270863,1744886831275,-69.29335573,0.00034246,2]
[358270864,1744886841108,-153.96664427,0.00034246,2]
[358270865,1744886841130,-147.98111108,0.00034548,10]
[358270866,1744886966092,-2.01888892,0.00034548,10]
[358270867,1744886966114,-223.26,0.00035616,2]
[358270868,1744886966135,-223.26,0.00036986,2]
[358270869,1744886966156,-223.26,0.00038356,2]
[358270870,1744886966177,-223.26,0.00039726,2]
[358270871,1744886966197,-223.26,0.00041095,120]
[358270872,1744886966218,-223.26,0.00042465,120]
[358270873,1744886966239,-223.26,0.00043835,120]
[358270874,1744886966259,-223.26,0.00045205,120]
[358270875,1744886966279,-223.26,0.00046575,120]
[358270878,1744887031726,-250.0,0.00047432,2]
[358270879,1744887031736,-223.26,0.00047945,120]
[358270880,1744887031746,-223.26,0.00049315,120]
[358270881,1744887031756,-150.5,0.00049421,120]
[358270882,1744887031765,-150.5,0.00049431,120]
[358270883,1744887031775,-150.5,0.00049441,120]
[358270884,1744887031784,-10129.59351561,0.0005,15]
[358270885,1744887031794,-223.26,0.00050684,120]
[358270886,1744887031804,-700.0,0.00051365,10]
[358270887,1744887031813,-150.0,0.00051366,30]
[358270888,1744887031823,-150.0,0.00051366,30]
[358270889,1744887031832,-150.0,0.00051366,30]
[358270890,1744887031842,-150.0,0.00051366,30]
[358270891,1744887031853,-150.0,0.00051366,30]
[358270892,1744887031863,-150.0,0.00051366,30]
[358270893,1744887031872,-150.0,0.00051366,30]
[358270894,1744887031881,-150.0,0.00051366,30]
[358270895,1744887031891,-150.0,0.00051366,30]
[358270896,1744887031901,-194.5,0.00051366,30]